fUSD/lending_fUSD_20241002
["ID","MTS","AMOUNT","RATE_DAILY","PERIOD"]
[339692374,1727869860425,-1681.47,0.00022191,2]
[339692376,1727869860436,-1011.97,0.00022191,2]
[339692378,1727869860446,-551.68,0.00022191,2]
[339692380,1727869860455,-500.0,0.00022191,2]
[339692382,1727869860466,-595.76,0.00022191,2]
[339692384,1727869860476,-4234.94,0.00022191,2]
[339692386,1727869860485,-500.0,0.00022191,2]
[339692388,1727869860495,-500.0,0.00022191,2]
[339692390,1727869860505,-807.3,0.00022191,2]
[339692392,1727869860514,-767.29,0.00022191,2]
[339692394,1727869860525,-500.0,0.00022191,2]
[339692396,1727869860535,-500.0,0.00022191,2]
[339692398,1727869860545,-4437.35,0.00022191,2]
[339692400,1727869860555,-500.0,0.00022191,2]
[339692402,1727869860564,-681.37,0.00022191,2]
[339692404,1727869860574,-500.0,0.00022191,2]
[339692406,1727869860584,-500.0,0.00022191,2]
[339692408,1727869860593,-810.27,0.00022191,2]
[339692410,1727869860602,-500.0,0.00022191,2]
[339692412,1727869860614,-2090.86,0.00022191,2]
[339692414,1727869860624,-500.0,0.00022191,2]
[339692416,1727869860634,-1313.14,0.00022191,2]
[339692418,1727869860644,-1262.83,0.00022191,2]
[339692420,1727869860654,-500.0,0.00022191,2]
[339692422,1727869860664,-1018.63,0.00022191,2]
[339692425,1727869860673,-504.51,0.00022191,2]
[339692427,1727869860683,-570.29,0.00022191,2]
[339692428,1727869860692,-736.45,0.00022191,2]
[339692431,1727869860702,-953.5,0.00022191,2]
[339692433,1727869860713,-598.89,0.00022191,2]
[339692434,1727869860722,-1201.78,0.00022191,2]
[339692437,1727869860732,-500.0,0.00022191,2]
[339692439,1727869860741,-500.0,0.00022191,2]
[339692441,1727869860750,-500.0,0.00022191,2]
[339692443,1727869860759,-4680.19,0.00022191,2]
[339692444,1727869860769,-892.18,0.00022191,2]
[339692446,1727869860779,-679.8,0.00022191,2]
[339692448,1727869860788,-690.14,0.00022191,2]
[339692451,1727869860798,-500.0,0.00022191,2]
[339692452,1727869860808,-500.0,0.00022191,2]
[339692454,1727869860818,-1031.13,0.00022191,2]
[339692456,1727869860828,-500.0,0.00022191,2]
[339692458,1727869860837,-2119.21,0.00022191,2]
[339692460,1727869860846,-3248.18,0.00022191,2]
[339692462,1727869860856,-500.0,0.00022191,2]
[339692464,1727869860865,-500.0,0.00022191,2]
[339692466,1727869860875,-500.0,0.00022191,2]
[339692468,1727869860884,-500.0,0.00022191,2]
[339692470,1727869860893,-6175.19,0.00022191,2]
[339692472,1727869860902,-500.0,0.00022191,2]
[339692474,1727869860912,-500.0,0.00022191,2]
[339692475,1727869860926,-1838.42,0.00022191,2]
[339692476,1727869860936,-507.21,0.00022191,2]
[339692477,1727869860945,-2667.03,0.00022191,2]
[339692478,1727869860954,-500.0,0.00022191,2]
[339692479,1727869860966,-500.0,0.00022191,2]
[339692480,1727869860976,-500.0,0.00022191,2]
[339692481,1727869860986,-500.0,0.00022191,2]
[339692482,1727869860997,-1672.93,0.00022191,2]
[339692483,1727869861006,-500.0,0.00022191,2]
[339692484,1727869861016,-500.0,0.00022191,2]
[339692485,1727869861025,-500.0,0.00022191,2]
[339692486,1727869861035,-1041.73,0.00022191,2]
[339692487,1727869861044,-534.06740249,0.00022191,2]
[339692488,1727869861053,-608.41,0.00022191,2]
[339692489,1727869861063,-529.98,0.00022191,7]
[339692490,1727869861072,-500.0,0.00022191,2]
[339692491,1727869861081,-5053.49,0.00022191,2]
[339692492,1727869861090,-500.0,0.00022191,2]
[339692493,1727869861100,-2022.31,0.00022191,2]
[339692494,1727869861109,-500.0,0.00022191,2]
[339692495,1727869861119,-500.0,0.00022191,2]
[339692497,1727869861128,-500.0,0.00022191,2]
[339692499,1727869861137,-500.0,0.00022191,2]
[339692501,1727869861146,-500.0,0.00022191,2]
[339692503,1727869861155,-500.0,0.00022191,2]
[339692505,1727869861165,-500.0,0.00022191,2]
[339692506,1727869861174,-500.0,0.00022191,2]
[339692508,1727869861184,-500.0,0.00022191,2]
[339692510,1727869861193,-1730.57,0.00022191,2]
[339692511,1727869861202,-500.0,0.00022191,2]
[339692513,1727869861212,-538.29,0.00022191,30]
[339692515,1727869861222,-4318.93,0.00022191,2]
[339692517,1727869861232,-2246.33,0.00022191,2]
[339692519,1727869861242,-500.0,0.00022191,2]
[339692521,1727869861251,-1020.6,0.00022191,2]
[339692523,1727869861260,-500.0,0.00022191,2]
[339692525,1727869861270,-500.0,0.00022191,2]
[339692527,1727869861279,-500.0,0.00022191,2]
[339692529,1727869861288,-500.0,0.00022191,2]
[339692531,1727869861297,-500.0,0.00022191,2]
[339692533,1727869861306,-500.0,0.00022191,2]
[339692535,1727869861315,-3153.21,0.00022191,2]
[339692537,1727869861326,-500.0,0.00022191,2]
[339692540,1727869861336,-506.11,0.00022191,2]
[339692542,1727869861346,-712.16,0.00022191,2]
[339692544,1727869861356,-985.3,0.00022191,2]
[339692546,1727869861365,-2970.4,0.00022191,2]
[339692547,1727869861375,-2465.15,0.00022191,2]
[339692549,1727869861384,-2086.78,0.00022191,2]
[339692551,1727869861394,-500.0,0.00022191,2]
[339692553,1727869861404,-500.0,0.00022191,2]
[339692555,1727869861414,-500.0,0.00022191,2]
[339692558,1727869861423,-1090.88,0.00022191,2]
[339692559,1727869861433,-500.0,0.00022191,2]
[339692562,1727869861443,-500.0,0.00022191,2]
[339692564,1727869861453,-500.0,0.00022191,2]
[339692566,1727869861468,-500.0,0.00022191,2]
[339692568,1727869861478,-895.01,0.00022191,2]
[339692570,1727869861489,-777.65,0.00022191,2]
[339692572,1727869861498,-3118.93,0.00022191,2]
[339692574,1727869861508,-987.1,0.00022191,2]
[339692576,1727869861517,-500.0,0.00022191,2]
[339692578,1727869861527,-500.0,0.00022191,2]
[339692580,1727869861538,-1136.65,0.00022191,2]
[339692582,1727869861547,-500.0,0.00022191,2]
[339692584,1727869861557,-1467.44,0.00022191,2]
[339692586,1727869861567,-1162.12,0.00022191,2]
[339692588,1727869861578,-500.0,0.00022191,2]
[339692590,1727869861588,-506.89,0.00022191,2]
[339692592,1727869861597,-500.0,0.00022191,2]
[339692594,1727869861608,-500.0,0.00022191,2]
[339692596,1727869861617,-500.0,0.00022191,2]
[339692598,1727869861626,-500.0,0.00022191,2]
[339692600,1727869861638,-579.97,0.00022191,2]
[339692602,1727869861648,-500.0,0.00022191,2]
[339692603,1727869861657,-940.83,0.00022191,2]
[339692605,1727869861666,-500.0,0.00022191,2]
[339692607,1727869861676,-500.0,0.00022191,2]
[339692609,1727869861685,-500.0,0.00022191,2]
[339692611,1727869861696,-500.0,0.00022191,2]
[339692613,1727869861706,-1971.31,0.00022191,2]
[339692615,1727869861718,-500.0,0.00022191,2]
[339692617,1727869861731,-500.0,0.00022191,2]
[339692619,1727869861741,-1121.76,0.00022191,2]
[339692621,1727869861750,-623.67,0.00022191,2]
[339692623,1727869861759,-2765.39,0.00022191,2]
[339692625,1727869861768,-1361.74,0.00022191,2]
[339692627,1727869861778,-965.87,0.00022191,2]
[339692629,1727869861786,-2074.26,0.00022191,2]
[339692631,1727869861796,-1445.85,0.00022191,2]
[339692633,1727869861805,-771.13,0.00022191,2]
[339692635,1727869861815,-500.0,0.00022191,2]
[339692637,1727869861824,-500.0,0.00022191,2]
[339692639,1727869861833,-500.0,0.00022191,2]
[339692641,1727869861843,-500.0,0.00022191,2]
[339692643,1727869861852,-998.13,0.00022191,2]
[339692645,1727869861862,-2391.46,0.00022191,2]
[339692677,1727869862161,-2900.51,0.00022191,2]
[339692679,1727869862178,-2290.5,0.00022191,2]
[339692682,1727869862188,-500.0,0.00022191,2]
[339692683,1727869862197,-500.0,0.00022191,2]
[339692685,1727869862206,-500.0,0.00022191,2]
[339692687,1727869862219,-500.0,0.00022191,2]
[339692689,1727869862229,-751.75,0.00022191,2]
[339692691,1727869862239,-500.0,0.00022191,2]
[339692693,1727869862248,-500.0,0.00022191,2]
[339692695,1727869862258,-1477.46,0.00022191,2]
[339692697,1727869862267,-500.0,0.00022191,2]
[339692699,1727869862277,-1360.75,0.00022191,2]
[339692701,1727869862286,-500.0,0.00022191,2]
[339692703,1727869862295,-1019.35,0.00022191,2]
[339692705,1727869862305,-1781.17,0.00022191,2]
[339692707,1727869862314,-1434.88,0.00022191,2]
[339692709,1727869862323,-500.0,0.00022191,2]
[339692711,1727869862333,-700.73,0.00022191,2]
[339692713,1727869862344,-864.57,0.00022191,2]
[339692715,1727869862354,-500.0,0.00022191,2]
[339692717,1727869862363,-924.55,0.00022191,2]
[339692719,1727869862373,-1589.64,0.00022191,2]
[339692721,1727869862383,-500.0,0.00022191,2]
[339692723,1727869862392,-500.0,0.00022191,2]
[339692725,1727869862403,-500.0,0.00022191,2]
[339692727,1727869862412,-3116.69,0.00022191,2]
[339692729,1727869862422,-1543.89,0.00022191,2]
[339692731,1727869862433,-4404.8,0.00022191,2]
[339692733,1727869862443,-19290.58,0.00022191,2]
[339692735,1727869862453,-560.29,0.00022191,2]
[339692738,1727869862468,-614.13,0.00022191,2]
[339692740,1727869862478,-2831.71,0.00022191,2]
[339692742,1727869862488,-1040.87,0.00022191,2]
[339692744,1727869862498,-1535.99,0.00022191,2]
[339692746,1727869862507,-500.0,0.00022191,2]
[339692748,1727869862517,-500.0,0.00022191,2]
[339692750,1727869862527,-1223.94,0.00022191,2]
[339692752,1727869862537,-610.3,0.00022191,2]
[339692754,1727869862547,-500.0,0.00022191,2]
[339692756,1727869862558,-500.0,0.00022191,2]
[339692758,1727869862569,-658.85,0.00022191,2]
[339692760,1727869862579,-500.0,0.00022191,2]
[339692762,1727869862589,-601.3054301,0.00022191,2]
[339692764,1727869862599,-551.95,0.00022191,2]
[339692766,1727869862609,-1515.98,0.00022191,2]
[339692768,1727869862619,-729.29,0.00022191,2]
[339692770,1727869862629,-579.63,0.00022191,2]
[339692772,1727869862640,-1288.21,0.00022191,2]
[339692774,1727869862649,-500.0,0.00022191,2]
[339692776,1727869862659,-1133.36,0.00022191,2]
[339692778,1727869862669,-1772.2,0.00022191,2]
[339692780,1727869862678,-500.0,0.00022191,2]
[339692782,1727869862687,-507.18,0.00022191,2]
[339692784,1727869862696,-1312.48,0.00022191,2]
[339692786,1727869862705,-500.0,0.00022191,2]
[339692788,1727869862718,-701.64,0.00022191,2]
[339692790,1727869862728,-665.99,0.00022191,2]
[339692792,1727869862737,-598.59,0.00022191,2]
[339692794,1727869862749,-808.47,0.00022191,2]
[339692796,1727869862759,-500.0,0.00022191,2]
[339692798,1727869862768,-513.44,0.00022191,2]
[339692800,1727869862778,-500.0,0.00022191,2]
[339692802,1727869862787,-500.0,0.00022191,2]
[339692804,1727869862796,-1157.26,0.00022191,2]
[339692806,1727869862806,-647.94,0.00022191,2]
[339692808,1727869862816,-500.0,0.00022191,2]
[339692810,1727869862825,-587.79,0.00022191,2]
[339692812,1727869862834,-500.0,0.00022191,2]
[339692814,1727869862845,-500.0,0.00022191,2]
[339692816,1727869862854,-2470.24,0.00022191,2]
[339692818,1727869862865,-553.22,0.00022191,2]
[339692820,1727869862875,-500.0,0.00022191,2]
[339692822,1727869862885,-934.27,0.00022191,2]
[339692824,1727869862894,-500.0,0.00022191,2]
[339692826,1727869862903,-727.36,0.00022191,2]
[339692828,1727869862915,-500.0,0.00022191,2]
[339692830,1727869862926,-648.66,0.00022191,2]
[339692832,1727869862935,-521.34,0.00022191,2]
[339692833,1727869862946,-849.78,0.00022191,2]
[339692834,1727869862955,-1657.63,0.00022191,2]
[339692835,1727869862968,-500.0,0.00022191,2]
[339692836,1727869862978,-3112.95,0.00022191,2]
[339692837,1727869862988,-1267.73,0.00022191,2]
[339692838,1727869863002,-500.0,0.00022191,2]
[339692839,1727869863011,-678.87,0.00022191,2]
[339692840,1727869863021,-515.08,0.00022191,2]
[339692841,1727869863032,-812.97,0.00022191,2]
[339692842,1727869863044,-575.05,0.00022191,2]
[339692843,1727869863054,-1574.1,0.00022191,2]
[339692844,1727869863064,-993.91,0.00022191,2]
[339692845,1727869863074,-1526.73,0.00022191,2]
[339692847,1727869863083,-500.0,0.00022191,2]
[339692849,1727869863093,-1049.52,0.00022191,2]
[339692851,1727869863103,-500.0,0.00022191,2]
[339692853,1727869863113,-500.0,0.00022191,2]
[339692855,1727869863123,-500.0,0.00022191,2]
[339692857,1727869863132,-1970.75,0.00022191,2]
[339692859,1727869863142,-500.0,0.00022191,2]
[339692861,1727869863152,-518.95,0.00022191,2]
[339692863,1727869863162,-500.0,0.00022191,2]
[339692865,1727869863172,-3520.63,0.00022191,2]
[339692867,1727869863182,-530.32,0.00022191,2]
[339692869,1727869863192,-500.0,0.00022191,2]
[339692871,1727869863202,-1403.56,0.00022191,2]
[339692873,1727869863211,-500.0,0.00022191,2]
[339692874,1727869863223,-500.0,0.00022191,2]
[339692876,1727869863232,-500.0,0.00022191,2]
[339692878,1727869863242,-1522.21,0.00022191,2]
[339692880,1727869863253,-500.0,0.00022191,2]
[339692882,1727869863263,-3091.29,0.00022191,2]
[339692884,1727869863274,-500.0,0.00022191,2]
[339692886,1727869863284,-500.0,0.00022191,2]
[339692888,1727869863293,-1354.75,0.00022191,2]
[339692890,1727869863303,-500.0,0.00022191,2]
[339692892,1727869863313,-500.0,0.00022191,2]
[339692894,1727869863322,-500.0,0.00022191,2]
[339692896,1727869863332,-988.48,0.00022191,2]
[339692898,1727869863342,-711.34,0.00022191,2]
[339692900,1727869863352,-825.42,0.00022191,2]
[339692902,1727869863362,-876.88,0.00022191,2]
[339692904,1727869863372,-1618.37,0.00022191,2]
[339692906,1727869863382,-833.27,0.00022191,2]
[339692908,1727869863392,-5815.04,0.00022191,2]
[339692910,1727869863403,-500.0,0.00022191,2]
[339692912,1727869863413,-1031.29,0.00022191,2]
[339692914,1727869863424,-500.0,0.00022191,2]
[339692916,1727869863434,-500.0,0.00022191,2]
[339692918,1727869863443,-1965.03,0.00022191,2]
[339692920,1727869863454,-3064.09,0.00022191,2]
[339692922,1727869863469,-500.0,0.00022191,2]
[339692924,1727869863479,-4974.41,0.00022191,2]
[339692926,1727869863490,-844.64,0.00022191,2]
[339692928,1727869863500,-1132.69,0.00022191,2]
[339692930,1727869863510,-823.54,0.00022191,2]
[339692932,1727869863521,-2331.34,0.00022191,2]
[339692934,1727869863531,-552.96,0.00022191,2]
[339692936,1727869863542,-500.0,0.00022191,2]
[339692938,1727869863552,-2974.28,0.00022191,2]
[339692940,1727869863563,-1148.88,0.00022191,2]
[339692942,1727869863573,-500.0,0.00022191,2]
[339692944,1727869863583,-968.97,0.00022191,2]
[339692946,1727869863593,-3001.6,0.00022191,2]
[339692948,1727869863603,-500.0,0.00022191,2]
[339692950,1727869863614,-500.0,0.00022191,2]
[339692952,1727869863625,-500.0,0.00022191,2]
[339692954,1727869863637,-500.0,0.00022191,2]
[339692956,1727869863648,-1264.99,0.00022191,2]
[339692958,1727869863658,-500.0,0.00022191,2]
[339692960,1727869863669,-726.05,0.00022191,2]
[339692962,1727869863678,-500.0,0.00022191,2]
[339692965,1727869863693,-3619.58,0.00022191,2]
[339692967,1727869863703,-337.45729269,0.00022191,2]
[339692969,1727869863715,-1051.14,0.00022191,2]
[339692971,1727869863725,-604.79,0.00022191,2]
[339692973,1727869863735,-500.0,0.00022191,2]
[339692975,1727869863745,-3602.22,0.00022191,2]
[339692977,1727869863755,-2687.13,0.00022191,2]
[339692979,1727869863765,-1390.28,0.00022191,2]
[339692981,1727869863774,-1118.51,0.00022191,2]
[339692983,1727869863784,-5879.71,0.00022191,2]
[339692985,1727869863794,-500.0,0.00022191,2]
[339692987,1727869863804,-500.0,0.00022191,2]
[339692988,1727869863813,-526.33,0.00022191,2]
[339692990,1727869863823,-500.0,0.00022191,2]
[339692993,1727869863837,-816.38,0.00022191,2]
[339692995,1727869863846,-500.0,0.00022191,2]
[339692997,1727869863856,-4254.33,0.00022191,2]
[339692999,1727869863866,-4061.83,0.00022191,2]
[339693001,1727869863875,-1959.33,0.00022191,2]
[339693003,1727869863885,-500.0,0.00022191,2]
[339693005,1727869863895,-1345.45,0.00022191,2]
[339693007,1727869863904,-500.0,0.00022191,2]
[339693008,1727869863914,-500.0,0.00022191,2]
[339693010,1727869863927,-1447.78,0.00022191,2]
[339693012,1727869863936,-567.66709921,0.00022191,2]
[339693014,1727869863946,-1075.93,0.00022191,2]
[339693016,1727869863956,-500.0,0.00022191,2]
[339693018,1727869863967,-1481.56,0.00022191,2]
[339693021,1727869863978,-519.77,0.00022191,2]
[339693022,1727869863989,-500.0,0.00022191,2]
[339693024,1727869863999,-500.0,0.00022191,2]
[339693026,1727869864008,-4444.78,0.00022191,2]
[339693028,1727869864018,-1469.09,0.00022191,2]
[339693030,1727869864027,-626.6,0.00022191,2]
[339693032,1727869864036,-2996.05,0.00022191,2]
[339693034,1727869864047,-3273.31,0.00022191,2]
[339693036,1727869864056,-613.77,0.00022191,2]
[339693038,1727869864067,-500.0,0.00022191,2]
[339693041,1727869864079,-500.0,0.00022191,2]
[339693043,1727869864090,-500.0,0.00022191,2]
[339693045,1727869864101,-958.03,0.00022191,2]
[339693047,1727869864111,-500.0,0.00022191,2]
[339693049,1727869864122,-707.05,0.00022191,2]
[339693051,1727869864132,-500.0,0.00022191,2]
[339693053,1727869864142,-500.0,0.00022191,2]
[339693055,1727869864152,-500.0,0.00022191,2]
[339693057,1727869864162,-3800.36,0.00022191,2]
[339693059,1727869864172,-528.33,0.00022191,2]
[339693061,1727869864182,-500.0,0.00022191,2]
[339693063,1727869864193,-10132.33,0.00022191,2]
[339693065,1727869864203,-888.35,0.00022191,2]
[339693067,1727869864215,-1216.89,0.00022191,2]
[339693069,1727869864225,-500.0,0.00022191,2]
[339693071,1727869864235,-542.56,0.00022191,2]
[339693073,1727869864244,-500.0,0.00022191,2]
[339693075,1727869864254,-1117.3,0.00022191,2]
[339693077,1727869864264,-1033.85,0.00022191,2]
[339693079,1727869864273,-1287.56,0.00022191,2]
[339693081,1727869864283,-500.0,0.00022191,2]
[339693082,1727869864293,-6495.52,0.00022191,2]
[339693084,1727869864302,-1020.29,0.00022191,2]
[339693086,1727869864313,-638.61700494,0.00022191,2]
[339693088,1727869864323,-3352.77,0.00022191,2]
[339693090,1727869864332,-3430.38,0.00022191,2]
[339693092,1727869864341,-500.0,0.00022191,2]
[339693094,1727869864351,-500.0,0.00022191,2]
[339693096,1727869864361,-1117.24,0.00022191,2]
[339693098,1727869864372,-500.0,0.00022191,2]
[339693100,1727869864381,-500.0,0.00022191,2]
[339693102,1727869864391,-1132.56,0.00022191,2]
[339693104,1727869864401,-880.57,0.00022191,2]
[339693106,1727869864411,-707.2,0.00022191,2]
[339693108,1727869864420,-502.16,0.00022191,2]
[339693110,1727869864430,-3228.99,0.00022191,2]
[339693112,1727869864440,-500.0,0.00022191,2]
[339693114,1727869864450,-682.74,0.00022191,2]
[339693116,1727869864460,-738.51,0.00022191,2]
[339693118,1727869864472,-500.0,0.00022191,2]
[339693120,1727869864481,-968.42,0.00022191,2]
[339693122,1727869864493,-500.0,0.00022191,2]
[339693124,1727869864503,-2448.54,0.00022191,2]
[339693126,1727869864512,-1406.54,0.00022191,2]
[339693128,1727869864522,-231.12430101,0.00022191,2]
[339693130,1727869864532,-848.81,0.00022191,2]
[339693132,1727869864542,-1709.53,0.00022191,2]
[339693134,1727869864553,-500.0,0.00022191,2]
[339693136,1727869864564,-500.0,0.00022191,2]
[339693138,1727869864574,-1553.71,0.00022191,2]
[339693140,1727869864585,-1194.43,0.00022191,2]
[339693142,1727869864594,-628.44,0.00022191,2]
[339693143,1727869864604,-500.0,0.00022191,2]
[339693154,1727869864708,-851.07,0.00022191,2]
[339693156,1727869864719,-151.0,0.00022192,7]
[339693158,1727869864729,-151.0,0.00022192,7]
[339693160,1727869864738,-200.0,0.0002222,2]
[339693162,1727869864748,-2000.0,0.0002222,2]
[339693164,1727869864757,-200.0,0.0002222,2]
[339693166,1727869864767,-200.0,0.0002222,2]
[339693168,1727869864777,-2000.0,0.0002222,2]
[339693169,1727869864786,-150.0,0.00022221,4]
[339693171,1727869864796,-500.0,0.00022233,15]
[339693173,1727869864805,-500.0,0.00022233,2]
[339693175,1727869864816,-501.48,0.00022233,2]
[339693177,1727869864826,-500.0,0.00022233,2]
[339693179,1727869864835,-811.94,0.00022233,2]
[339693181,1727869864845,-500.0,0.00022233,2]
[339693183,1727869864854,-500.0,0.00022233,2]
[339693185,1727869864865,-677.94,0.00022233,2]
[339693187,1727869864874,-1158.57,0.00022233,2]
[339693189,1727869864884,-500.0,0.00022233,2]
[339693191,1727869864893,-500.0,0.00022233,2]
[339693192,1727869864902,-949.49,0.00022233,2]
[339693194,1727869864911,-734.7,0.00022233,2]
[339693196,1727869864925,-500.0,0.00022233,2]
[339693198,1727869864935,-500.0,0.00022233,2]
[339693200,1727869864944,-500.0,0.00022233,2]
[339693202,1727869864955,-500.0,0.00022233,2]
[339693204,1727869864967,-1575.29,0.00022233,2]
[339693206,1727869864980,-582.72,0.00022233,2]
[339693208,1727869864990,-500.0,0.00022233,2]
[339693210,1727869865001,-500.0,0.00022233,2]
[339693212,1727869865011,-626.44,0.00022233,2]
[339693214,1727869865020,-1190.66,0.00022233,2]
[339693216,1727869865029,-2536.33,0.00022233,2]
[339693218,1727869865039,-2331.44,0.00022233,2]
[339693220,1727869865049,-2214.7,0.00022233,2]
[339693222,1727869865058,-500.0,0.00022233,2]
[339693224,1727869865068,-2055.94,0.00022233,2]
[339693226,1727869865079,-500.0,0.00022233,2]
[339693228,1727869865089,-500.0,0.00022233,2]
[339693230,1727869865099,-500.0,0.00022233,2]
[339693232,1727869865109,-1181.53,0.00022233,2]
[339693234,1727869865119,-500.0,0.00022233,2]
[339693236,1727869865128,-3113.85,0.00022233,2]
[339693238,1727869865138,-500.0,0.00022233,2]
[339693240,1727869865149,-500.0,0.00022233,2]
[339693242,1727869865159,-500.0,0.00022233,2]
[339693244,1727869865168,-518.44309511,0.00022233,2]
[339693246,1727869865178,-500.0,0.00022233,2]
[339693248,1727869865187,-954.97,0.00022233,2]
[339693250,1727869865196,-3272.25,0.00022233,2]
[339693252,1727869865206,-514.03,0.00022233,2]
[339693254,1727869865216,-500.0,0.00022233,2]
[339693256,1727869865225,-1329.92,0.00022233,2]
[339693258,1727869865235,-2132.25,0.00022233,2]
[339693260,1727869865244,-500.0,0.00022233,2]
[339693262,1727869865254,-3120.51,0.00022233,2]
[339693264,1727869865264,-3249.87,0.00022233,2]
[339693266,1727869865274,-504.42602393,0.00022233,2]
[339693268,1727869865284,-500.0,0.00022233,2]
[339693269,1727869865293,-1833.21,0.00022233,2]
[339693271,1727869865302,-500.0,0.00022233,2]
[339693273,1727869865312,-150.0,0.00022234,4]
[339693275,1727869865322,-500.0,0.00022243,2]
[339693277,1727869865331,-615.13,0.00022243,2]
[339693279,1727869865340,-689.3,0.00022243,2]
[339693281,1727869865349,-1015.62,0.00022243,2]
[339693283,1727869865359,-500.0,0.00022243,2]
[339693285,1727869865369,-1202.84,0.00022243,2]
[339693287,1727869865379,-500.0,0.00022243,2]
[339693289,1727869865389,-808.31,0.00022243,2]
[339693291,1727869865399,-1229.27,0.00022243,2]
[339693293,1727869865409,-503.57097365,0.00022243,2]
[339693295,1727869865419,-711.21,0.00022243,2]
[339693296,1727869865428,-500.0,0.00022243,2]
[339693298,1727869865438,-500.0,0.00022243,2]
[339693300,1727869865447,-1084.12,0.00022243,2]
[339693302,1727869865457,-500.0,0.00022243,2]
[339693304,1727869865468,-500.0,0.00022243,2]
[339693306,1727869865478,-500.0,0.00022243,2]
[339693308,1727869865488,-500.0,0.00022243,2]
[339693310,1727869865498,-920.35,0.00022243,2]
[339693312,1727869865507,-500.0,0.00022243,2]
[339693314,1727869865517,-500.0,0.00022243,2]
[339693316,1727869865526,-722.01,0.00022243,2]
[339693317,1727869865536,-621.72,0.00022243,2]
[339693318,1727869865545,-500.0,0.00022243,2]
[339693319,1727869865554,-1148.26,0.00022243,2]
[339693320,1727869865563,-500.0,0.00022243,2]
[339693321,1727869865573,-1290.73,0.00022243,2]
[339693322,1727869865582,-500.0,0.00022243,2]
[339693323,1727869865593,-500.0,0.00022243,2]
[339693324,1727869865603,-500.0,0.00022243,2]
[339693325,1727869865613,-500.0,0.00022243,2]
[339693326,1727869865623,-567.63,0.00022243,2]
[339693327,1727869865633,-500.0,0.00022243,2]
[339693328,1727869865643,-500.0,0.00022243,2]
[339693330,1727869865653,-500.0,0.00022243,2]
[339693331,1727869865662,-500.0,0.00022243,2]
[339693333,1727869865672,-500.0,0.00022243,2]
[339693335,1727869865681,-1204.46,0.00022243,2]
[339693337,1727869865691,-999.69,0.00022243,2]
[339693339,1727869865700,-1963.92,0.00022243,2]
[339693341,1727869865710,-665.58,0.00022243,2]
[339693342,1727869865726,-500.0,0.00022243,2]
[339693344,1727869865736,-711.49,0.00022243,2]
[339693346,1727869865744,-619.99,0.00022243,2]
[339693348,1727869865755,-590.9,0.00022243,2]
[339693350,1727869865765,-844.29,0.00022243,2]
[339693352,1727869865774,-500.0,0.00022243,2]
[339693354,1727869865783,-801.84,0.00022243,2]
[339693356,1727869865793,-500.0,0.00022243,2]